bitfinex-derivatives/quotes_BTCF0:USTF0_20250713
["timestamp","ask_amount","ask_price","bid_price","bid_amount"]
[1752419008712,0.96863019,118910.0,118900.0,0.27509197]
[1752419008915,0.68327811,118910.0,118900.0,0.27509197]
[1752419009211,0.68327811,118910.0,118900.0,0.31915197]
[1752419009212,0.89973811,118910.0,118900.0,0.31915197]
[1752419009610,0.31033811,118910.0,118900.0,0.32015197]
[1752419009813,0.89969811,118910.0,118900.0,0.60550405]
[1752419010007,0.89969811,118910.0,118900.0,0.32015197]
[1752419010314,0.89969811,118910.0,118900.0,0.32215197]
[1752419011816,0.31033811,118910.0,118900.0,0.32215197]
[1752419012014,0.89973811,118910.0,118900.0,0.32215197]
[1752419012319,0.31033811,118910.0,118900.0,0.32215197]
[1752419012511,0.66847711,118910.0,118900.0,0.96830405]
[1752419012913,0.07915711,118910.0,118900.0,0.96830405]
[1752419013112,0.62296711,118910.0,118900.0,0.96830405]
[1752419013313,0.03368711,118910.0,118900.0,0.96830405]
[1752419013509,0.01623372,118910.0,118900.0,0.96830405]
[1752419013818,0.60551372,118910.0,118900.0,0.96830405]
[1752419014020,0.62272815,118910.0,118900.0,0.96830405]
[1752419014516,0.03344815,118910.0,118900.0,0.96830405]
[1752419014816,0.03344815,118910.0,118900.0,1.13650405]
[1752419014817,0.01623372,118910.0,118900.0,1.13650405]
[1752419015912,0.002,118930.0,118920.0,0.3012968]
[1752419016107,0.002,118930.0,118920.0,3.03992981]
[1752419016313,0.002,118930.0,118920.0,3.20810581]
[1752419017012,0.00100001,118930.0,118920.0,3.20810581]
[1752419017212,0.00100001,118930.0,118920.0,3.02599953]
[1752419018021,0.00300001,118930.0,118920.0,2.74064745]
[1752419020123,0.00300001,118930.0,118920.0,2.57247145]
[1752419021220,0.00300001,118930.0,118920.0,2.85782353]
[1752419025623,0.00300001,118930.0,118920.0,2.57247145]
[1752419027126,0.00300001,118930.0,118920.0,2.85782353]
[1752419031031,0.00300001,118930.0,118920.0,2.90311807]
[1752419031432,0.00300001,118930.0,118920.0,2.85782353]
[1752419031933,0.00300001,118930.0,118920.0,2.90311807]
[1752419032227,0.00300001,118930.0,118920.0,2.85782353]
[1752419036231,0.00300001,118930.0,118920.0,2.28711937]
[1752419036429,0.04511001,118930.0,118920.0,2.57247145]
[1752419036635,0.13252001,118930.0,118920.0,2.28711937]
[1752419036934,0.13252001,118930.0,118920.0,2.57247145]
[1752419037136,0.10868001,118930.0,118920.0,2.57247145]
[1752419037632,0.04511001,118930.0,118920.0,2.57247145]
[1752419038229,0.04511001,118930.0,118920.0,2.21167145]
[1752419039132,0.21320261,118930.0,118920.0,2.21167145]
[1752419040637,0.27677261,118930.0,118920.0,2.21167145]
[1752419040832,0.58596469,118930.0,118920.0,0.31914535]
[1752419041142,0.60317763,118930.0,118920.0,0.31914535]
[1752419041328,0.31782555,118930.0,118920.0,0.31914535]
[1752419042236,0.60317763,118930.0,118920.0,0.3012965]
[1752419042638,0.31782555,118930.0,118920.0,0.3012965]
[1752419042940,0.60317763,118930.0,118920.0,0.31852909]
[1752419043342,0.31782555,118930.0,118920.0,0.31852909]
[1752419043744,0.67862555,118930.0,118920.0,0.31852909]
[1752419044649,0.96397763,118930.0,118920.0,0.31852909]
[1752419045438,0.96397763,118930.0,118920.0,0.18533909]
[1752419045939,0.96397763,118930.0,118920.0,0.20978909]
[1752419046139,0.96397763,118930.0,118920.0,0.1681065]
[1752419046443,0.96400452,118930.0,118920.0,0.1681065]
[1752419048542,1.55216452,118930.0,118920.0,0.1681065]
[1752419050142,1.55216452,118930.0,118920.0,0.1925565]
[1752419052944,0.2976264,118920.0,118910.0,0.4284341]
[1752419053247,0.96101831,118920.0,118910.0,0.2766148]
[1752419053437,0.96101831,118920.0,118910.0,0.2345869]
[1752419053638,0.1681205,118910.0,118900.0,0.12761687]
[1752419053842,0.1681347,118900.0,118890.0,0.3864531]
[1752419054047,0.58300678,118900.0,118890.0,0.3862531]
[1752419054243,0.2976547,118900.0,118890.0,0.3862531]
[1752419054444,0.31485502,118900.0,118890.0,0.3862531]
[1752419055949,0.31585502,118900.0,118890.0,0.3902531]
[1752419057244,0.06031032,118900.0,118890.0,1.03640518]
[1752419057446,0.77429502,118900.0,118890.0,1.03640518]
[1752419057848,0.81640502,118900.0,118890.0,0.7510531]
[1752419058048,0.81640502,118900.0,118890.0,1.03640518]
[1752419058250,0.81640502,118900.0,118890.0,1.03940518]
[1752419059051,0.7992047,118900.0,118890.0,1.03940518]
[1752419059849,0.81635501,118900.0,118890.0,1.03940518]
[1752419060148,0.8627747,118900.0,118890.0,0.67860518]
[1752419060345,1.26456324,118900.0,118890.0,0.3932531]
[1752419060746,1.54991532,118900.0,118890.0,0.3932531]
[1752419061252,0.90368324,118900.0,118890.0,0.3932531]
[1752419061645,0.90367525,118900.0,118890.0,0.3932531]
[1752419064146,0.14766055,118900.0,118890.0,0.3932531]
[1752419064353,0.90359525,118900.0,118890.0,0.3932531]
[1752419064856,0.12382055,118900.0,118890.0,0.7540531]
[1752419065155,0.87975525,118900.0,118890.0,0.7540531]
[1752419065351,0.12382055,118900.0,118890.0,1.03940518]
[1752419065557,0.64805055,118900.0,118890.0,1.03940518]
[1752419065756,0.87831525,118900.0,118890.0,1.03940518]
[1752419066254,0.71018055,118900.0,118890.0,0.67860518]
[1752419066452,0.71018055,118900.0,118890.0,1.03940518]
[1752419066652,0.87831515,118900.0,118890.0,1.03940518]
[1752419066853,1.23911515,118900.0,118890.0,0.67860518]
[1752419067053,1.26283479,118900.0,118890.0,0.67860518]
[1752419067950,0.67503479,118900.0,118890.0,0.67860518]
[1752419068255,1.26275479,118900.0,118890.0,0.67860518]
[1752419069850,1.26275479,118900.0,118890.0,0.3932531]
[1752419076462,1.54810687,118900.0,118890.0,0.3512167]
[1752419076657,1.54810687,118900.0,118890.0,0.2416267]
[1752419076959,1.54810687,118900.0,118890.0,0.1751489]
[1752419080654,0.2347892,118890.0,118880.0,0.00381694]
[1752419080851,0.9764286,118890.0,118880.0,0.00361694]
[1752419081052,0.9764286,118890.0,118880.0,0.17178024]
[1752419081961,0.9774286,118890.0,118880.0,0.17578024]
[1752419082255,0.9774286,118890.0,118880.0,0.01061694]
[1752419082461,0.9784286,118890.0,118880.0,0.01061694]
[1752419082957,0.9774286,118890.0,118880.0,0.00761694]
[1752419083159,0.9774286,118890.0,118880.0,0.00861694]
[1752419083966,0.1918733,118880.0,118870.0,0.0002]
[1752419084161,0.3390267,118860.0,118850.0,0.13317]
[1752419084360,1.58960897,118860.0,118850.0,0.3013737]
[1752419085258,1.00232897,118860.0,118850.0,0.1682037]
[1752419085464,1.00232897,118860.0,118850.0,0.2583937]
[1752419085758,1.58956897,118860.0,118850.0,0.2583937]
[1752419085956,1.59056897,118860.0,118850.0,0.2643937]
[1752419086362,1.59156897,118860.0,118850.0,0.2683937]
[1752419088270,1.59156897,118860.0,118850.0,0.3113737]
[1752419089271,1.59156897,118860.0,118850.0,0.2878437]
[1752419089561,1.59156897,118860.0,118850.0,0.3113737]
[1752419089968,0.94537689,118860.0,118850.0,0.3113737]
[1752419090172,0.94537689,118860.0,118850.0,0.95752578]
[1752419090360,0.01915019,118860.0,118850.0,0.95752578]
[1752419091168,0.002,118860.0,118850.0,1.31832578]
[1752419093174,0.1701916,118860.0,118850.0,1.31832578]
[1752419093871,0.2129816,118860.0,118850.0,1.31832578]
[1752419094371,0.04479,118860.0,118850.0,1.31832578]
[1752419094763,0.22997438,118860.0,118850.0,0.59672578]
[1752419094967,0.22997438,118860.0,118850.0,0.95752578]
[1752419095169,0.31622438,118860.0,118850.0,0.3113737]
[1752419095373,0.60157646,118860.0,118850.0,0.3113737]
[1752419095773,0.96237646,118860.0,118850.0,0.3113737]
[1752419096869,0.31622438,118860.0,118850.0,0.3113737]
[1752419097075,0.60157646,118860.0,118850.0,0.3113737]
[1752419097874,0.94538368,118860.0,118850.0,0.14317]
[1752419098074,0.96239702,118860.0,118850.0,0.3113758]
[1752419098575,0.96239702,118860.0,118850.0,0.32929353]
[1752419098775,0.96239702,118860.0,118850.0,0.28631353]
[1752419098976,0.96239702,118860.0,118850.0,0.19612353]
[1752419100772,1.54939702,118860.0,118850.0,0.21957353]
[1752419100973,1.54939702,118860.0,118850.0,0.28326353]
[1752419101684,1.54939702,118860.0,118850.0,0.19612353]
[1752419102174,1.54939702,118860.0,118850.0,0.02791773]
[1752419102373,1.54939702,118860.0,118850.0,0.19612373]
[1752419102778,1.54939702,118860.0,118850.0,0.02791773]
[1752419102976,1.54939702,118860.0,118850.0,0.01]
[1752419103676,0.168206,118850.0,118840.0,0.00381816]
[1752419103881,0.96041142,118850.0,118840.0,0.00361816]
[1752419104285,0.96041142,118850.0,118830.0,0.0002]
[1752419104286,0.1682201,118840.0,118830.0,0.0002]
[1752419104577,0.1682201,118840.0,118820.0,0.31737738]
[1752419104578,0.2939043,118830.0,118820.0,0.31737738]
[1752419104779,0.94005638,118830.0,118820.0,0.31717738]
[1752419104980,0.94005638,118830.0,118820.0,0.35860738]
[1752419105385,0.94005638,118830.0,118820.0,0.2996877]
[1752419105676,0.94105638,118830.0,118820.0,0.1774984]
[1752419105880,0.94105638,118830.0,118820.0,0.00925]
[1752419106078,0.2900484,118820.0,118810.0,0.0002]
[1752419106379,0.2900626,118810.0,118800.0,0.38479448]
[1752419106575,0.93621468,118810.0,118800.0,0.34252578]
[1752419108276,0.93621468,118810.0,118800.0,0.30045768]
[1752419108579,0.93721468,118810.0,118800.0,0.00361938]
[1752419108783,0.94421468,118810.0,118800.0,0.00361938]
[1752419109880,1.53113468,118810.0,118800.0,0.17189608]
[1752419111377,1.81921416,118810.0,118790.0,0.0002]
[1752419111577,0.0420784,118780.0,118760.0,0.04891514]
[1752419111775,1.17527138,118770.0,118760.0,0.0907606]
[1752419111969,1.76219138,118770.0,118760.0,0.13605514]
[1752419112480,1.17527138,118770.0,118760.0,0.2590941]
[1752419112681,1.17527138,118770.0,118760.0,0.3005241]
[1752419112884,1.76419138,118770.0,118760.0,0.3015241]
[1752419113982,1.04259138,118770.0,118760.0,0.3015241]
[1752419114183,0.7572393,118770.0,118760.0,0.58687618]
[1752419114384,0.7572393,118770.0,118760.0,0.3015241]
[1752419114578,0.1703193,118770.0,118760.0,0.3015241]
[1752419114775,0.7571993,118770.0,118760.0,0.3015241]
[1752419114974,1.04255138,118770.0,118760.0,0.3015241]
[1752419115582,1.40335138,118770.0,118760.0,0.1331906]
[1752419115779,1.68970346,118770.0,118760.0,0.0927606]
[1752419115983,1.68970346,118770.0,118760.0,0.0056206]
[1752419116178,1.40435138,118770.0,118760.0,0.0056206]
[1752419116384,1.68970346,118770.0,118760.0,0.0056206]
[1752419116587,1.85810346,118770.0,118760.0,0.0056206]
[1752419118986,1.62265588,118770.0,118760.0,0.0056206]
[1752419119783,1.47134626,118770.0,118760.0,0.0056206]
[1752419123286,1.45425588,118770.0,118760.0,0.0056206]
[1752419123690,1.45471588,118770.0,118760.0,0.0056206]
[1752419123891,1.47178769,118770.0,118760.0,0.0056206]
[1752419124287,0.1683331,118760.0,118750.0,0.08707]
[1752419124488,0.56243218,118760.0,118750.0,0.13043]
[1752419124687,0.56243218,118760.0,118750.0,0.2987774]
[1752419125001,0.18430037,118760.0,118750.0,0.99483398]
[1752419125286,0.07009222,118770.0,118760.0,0.2987233]
[1752419125494,0.7553958,118780.0,118770.0,0.1683192]
[1752419125693,0.7724626,118780.0,118770.0,0.6595092]
[1752419125991,0.0170668,118780.0,118770.0,1.01225473]
[1752419126291,0.1853718,118780.0,118770.0,1.01025473]
[1752419126680,0.1883718,118780.0,118770.0,1.01125473]
[1752419126880,0.1883718,118780.0,118770.0,0.67499815]
[1752419127295,0.2562458,118780.0,118770.0,0.67499815]
[1752419127693,0.2572458,118780.0,118770.0,0.67499815]
[1752419128190,0.0889408,118780.0,118770.0,0.67499815]
[1752419128694,0.2572457,118780.0,118770.0,0.67499815]
[1752419129493,0.2572457,118780.0,118770.0,0.68327457]
[1752419129794,0.2572457,118780.0,118770.0,0.67499815]
[1752419130998,0.2401789,118780.0,118770.0,0.67499815]
[1752419132095,0.071874,118780.0,118770.0,0.67499815]
[1752419132398,0.2401791,118780.0,118770.0,0.67499815]
[1752419133998,0.071874,118780.0,118770.0,0.67499815]
[1752419134400,0.2401792,118780.0,118770.0,0.67499815]
[1752419134794,0.071874,118780.0,118770.0,0.67499815]
[1752419135390,0.004,118780.0,118770.0,1.01025473]
[1752419135595,0.01618266,118800.0,118790.0,0.298681]
[1752419135790,0.01618266,118800.0,118790.0,1.35553758]
[1752419135990,0.03339246,118800.0,118790.0,1.52389758]
[1752419136390,0.004,118810.0,118800.0,0.2986669]
[1752419136599,0.01621052,118820.0,118810.0,0.2986527]
[1752419136892,0.01621052,118820.0,118810.0,1.15503728]
[1752419137290,0.01621052,118820.0,118810.0,1.14903728]
[1752419137994,0.01921052,118820.0,118810.0,1.21581408]
[1752419138197,0.2102865,118840.0,118830.0,0.2986244]
[1752419138593,0.2507665,118840.0,118830.0,0.2986244]
[1752419138896,0.2507665,118840.0,118830.0,0.2976244]
[1752419139297,0.67076308,118840.0,118830.0,0.2986242]
[1752419140592,0.3355065,118840.0,118830.0,0.2986242]
[1752419140798,1.03156308,118840.0,118830.0,0.2986243]
[1752419141198,0.67076308,118840.0,118830.0,0.2986243]
[1752419141611,1.03156308,118840.0,118830.0,0.13039]
[1752419141900,1.03356308,118840.0,118830.0,0.13039]
[1752419142294,1.03356308,118840.0,118830.0,0.2986246]
[1752419142499,1.03356308,118840.0,118830.0,0.13039]
[1752419142699,1.03356308,118840.0,118830.0,0.2986245]
[1752419143098,0.67276308,118840.0,118830.0,0.13039]
[1752419143298,0.67276308,118840.0,118830.0,0.2986245]
[1752419143603,0.3137465,118840.0,118830.0,0.2986245]
[1752419144098,0.6745465,118840.0,118830.0,0.2986245]
[1752419144298,1.2613065,118840.0,118830.0,0.2986245]
[1752419145598,1.62032308,118840.0,118830.0,0.13039]
[1752419145794,1.62032308,118840.0,118830.0,0.2354145]
[1752419146000,1.62032308,118840.0,118830.0,0.2986245]
[1752419147005,1.2002465,118840.0,118830.0,0.2986245]
[1752419147305,0.8394465,118840.0,118830.0,0.2986245]
[1752419147506,0.8394465,118840.0,118830.0,0.6594245]
[1752419149108,0.2527665,118840.0,118830.0,0.6594245]
[1752419151304,0.1702205,118840.0,118830.0,0.6594245]
[1752419151700,0.002,118840.0,118830.0,0.6594245]
[1752419151904,0.002,118840.0,118830.0,2.16796108]
[1752419152107,0.002,118840.0,118830.0,2.52876108]
[1752419152302,0.004,118850.0,118830.0,2.52876108]
[1752419152508,0.004,118850.0,118840.0,1.01210715]
[1752419154109,0.277036,118850.0,118840.0,0.31605057]
[1752419154413,0.278036,118850.0,118840.0,0.31605057]
[1752419154610,0.280036,118850.0,118840.0,0.31605057]
[1752419155212,0.279036,118850.0,118840.0,0.31605057]
[1752419155814,0.278036,118850.0,118840.0,0.67785057]
[1752419156910,0.005,118850.0,118840.0,1.01310715]
[1752419158412,0.005,118850.0,118840.0,1.18139515]
[1752419159715,0.005,118850.0,118840.0,0.84613857]
[1752419159916,0.005,118850.0,118840.0,1.18139515]
[1752419160709,0.005,118850.0,118840.0,1.01310715]
[1752419161413,0.01615412,118870.0,118860.0,0.2953619]
[1752419161605,0.03326493,118870.0,118860.0,2.16437848]
[1752419162217,0.01615412,118870.0,118860.0,2.16437848]
[1752419162415,0.01615412,118870.0,118860.0,2.17273156]
[1752419163017,0.01815412,118870.0,118860.0,2.17273156]
[1752419163613,0.01815412,118870.0,118860.0,2.34098756]
[1752419163816,0.002,118870.0,118860.0,2.71969576]
[1752419165012,0.002,118870.0,118860.0,2.72069576]
[1752419165213,0.2128594,118890.0,118880.0,0.2113435]
[1752419165516,0.06184559,118890.0,118880.0,1.8279735]
[1752419165711,0.02113559,118890.0,118880.0,2.17973781]
[1752419166508,0.004,118890.0,118880.0,2.17973781]
[1752419167710,0.004,118890.0,118880.0,2.18073781]
[1752419168119,0.71507275,118920.0,118910.0,0.2952911]
[1752419168320,0.73220492,118920.0,118910.0,0.2952911]
[1752419168821,0.37140492,118920.0,118910.0,0.2952911]
[1752419169029,0.73220492,118920.0,118910.0,0.2952911]
[1752419169228,0.73520492,118920.0,118910.0,0.2952911]
[1752419170024,1.0704615,118920.0,118910.0,0.2952911]
[1752419170730,0.73520492,118920.0,118910.0,0.2952911]
[1752419171127,0.37440492,118920.0,118910.0,0.2952911]
[1752419171334,0.67005762,118920.0,118910.0,0.2952911]
[1752419171534,0.60993762,118920.0,118910.0,0.2962911]
[1752419171829,0.69717762,118920.0,118910.0,0.2962911]
[1752419173229,1.0324342,118920.0,118910.0,0.2354512]
[1752419174127,1.0324342,118920.0,118910.0,0.001]
[1752419174927,0.2960712,118910.0,118900.0,0.0002]
[1752419175131,0.2960853,118900.0,118890.0,0.2335332]
[1752419175327,0.64711317,118900.0,118890.0,0.2333332]
[1752419175528,0.66423497,118900.0,118890.0,0.2333332]
[1752419175729,1.02503497,118900.0,118890.0,0.1912961]
[1752419176124,1.02603497,118900.0,118890.0,0.1912961]
[1752419176329,1.02603497,118900.0,118890.0,0.1681461]
[1752419177931,0.69077839,118900.0,118890.0,0.2953161]
[1752419178531,0.69177839,118900.0,118890.0,0.2953161]
[1752419179840,0.33097839,118900.0,118890.0,0.2953161]
[1752419180742,0.69177839,118900.0,118890.0,0.2953161]
[1752419181142,0.33097839,118900.0,118890.0,0.2953161]
[1752419181840,0.91721839,118900.0,118890.0,0.2953161]
[1752419183436,0.33097839,118900.0,118890.0,0.2953161]
[1752419183641,0.24373839,118900.0,118890.0,0.99137268]
[1752419183835,0.24373839,118900.0,118890.0,0.63057268]
[1752419184142,0.24373839,118900.0,118890.0,0.2953161]
[1752419184344,0.32599839,118900.0,118890.0,0.2953161]
[1752419190151,0.30308839,118900.0,118890.0,0.2953161]
[1752419190652,0.07560309,118900.0,118890.0,0.63057268]
[1752419190857,0.07560309,118900.0,118890.0,0.99137268]
[1752419191263,0.03489309,118900.0,118890.0,0.99137268]
[1752419191854,0.03489309,118900.0,118890.0,2.16381268]
[1752419192551,0.20302839,118900.0,118890.0,1.8285561]
[1752419192852,0.03489309,118900.0,118890.0,1.8285561]
[1752419195457,0.07647309,118900.0,118890.0,1.8285561]
[1752419196253,0.24462439,118900.0,118890.0,1.8285561]
[1752419196454,0.07647309,118900.0,118890.0,1.8285561]
[1752419197259,0.24462439,118900.0,118890.0,1.8285561]
[1752419197459,0.30397439,118900.0,118890.0,1.8285561]
[1752419197762,0.30397439,118900.0,118890.0,1.4677561]
[1752419198164,0.13582309,118900.0,118890.0,1.4677561]
[1752419199162,0.30397429,118900.0,118890.0,1.4677561]
[1752419199858,0.13582309,118900.0,118890.0,1.4677561]
[1752419200362,0.30397439,118900.0,118890.0,1.4677561]
[1752419201163,0.13582309,118900.0,118890.0,1.4677561]
[1752419201967,0.13582309,118900.0,118890.0,1.75307547]
[1752419202582,0.30397429,118900.0,118890.0,1.75307547]
[1752419203263,0.13582309,118900.0,118890.0,1.75307547]
[1752419203465,0.13582309,118900.0,118890.0,1.4677561]
[1752419206472,0.61220376,118900.0,118890.0,1.4677561]
[1752419206670,0.61220376,118900.0,118890.0,0.2953161]
[1752419206871,1.55908376,118900.0,118890.0,0.2953354]
[1752419207172,1.55908376,118900.0,118890.0,0.1681654]
[1752419207373,1.55908376,118900.0,118890.0,0.2320354]
[1752419207665,1.55908376,118900.0,118890.0,0.2934754]
[1752419209070,0.1681654,118890.0,118880.0,0.22877853]
[1752419209263,0.95524657,118890.0,118880.0,0.39674953]
[1752419209462,0.59444657,118890.0,118880.0,0.39674953]
[1752419210171,0.42628117,118890.0,118880.0,0.39674953]
[1752419210374,0.7040918,118890.0,118880.0,1.0428689]
[1752419211170,0.7040918,118890.0,118880.0,0.6820689]
[1752419211464,0.7040918,118890.0,118880.0,0.75754953]
[1752419211670,0.7040918,118890.0,118880.0,0.39674953]
[1752419213278,0.8722573,118890.0,118880.0,0.39674953]
[1752419213468,0.7283518,118890.0,118880.0,0.39674953]
[1752419214972,0.7283918,118890.0,118880.0,0.39674953]
[1752419216471,0.8965573,118890.0,118880.0,0.39674953]
[1752419217872,1.18187667,118890.0,118880.0,0.39674953]
[1752419220277,1.01367117,118890.0,118880.0,0.39674953]
[1752419220476,0.7283518,118890.0,118880.0,0.39674953]
[1752419220978,0.8965173,118890.0,118880.0,0.39674953]
[1752419221780,0.7283518,118890.0,118880.0,0.39674953]
[1752419223081,0.8965173,118890.0,118880.0,0.39674953]
[1752419223783,0.89654296,118890.0,118880.0,0.39674953]
[1752419225782,0.14233746,118890.0,118880.0,0.39674953]
[1752419225983,0.70407746,118890.0,118880.0,0.6820689]
[1752419226182,0.70407746,118890.0,118880.0,1.0428689]
[1752419229886,0.01714746,118890.0,118880.0,2.2148289]
[1752419232978,0.01577129,118900.0,118890.0,0.2925355]
[1752419233185,0.01577129,118900.0,118890.0,0.93865487]
[1752419233380,0.01617885,118920.0,118910.0,0.2076972]
[1752419233584,0.04186001,118930.0,118920.0,0.1681231]
[1752419233781,0.04186001,118930.0,118920.0,0.57781247]
[1752419234496,0.04186001,118930.0,118920.0,0.57681247]
[1752419234791,0.04186001,118930.0,118920.0,0.93761247]
[1752419235092,0.04186001,118930.0,118920.0,0.94618054]
[1752419235987,0.04186001,118930.0,118920.0,0.94418054]
[1752419236386,0.04286001,118930.0,118920.0,0.65886117]
[1752419236588,0.04486001,118930.0,118920.0,0.93561247]
[1752419236785,0.10376001,118930.0,118920.0,0.2894931]
[1752419236980,0.29612891,118930.0,118920.0,0.2894931]
[1752419238992,0.65692891,118930.0,118920.0,0.2894931]
[1752419239888,0.94224828,118930.0,118920.0,0.2894931]
[1752419240192,0.58144828,118930.0,118920.0,0.2894931]
[1752419240892,0.94224828,118930.0,118920.0,0.2894931]
[1752419241795,0.41333938,118930.0,118920.0,0.2894931]
[1752419242093,0.29612891,118930.0,118920.0,0.2894931]
[1752419243896,0.27186891,118930.0,118920.0,0.2894931]
[1752419244095,0.10376001,118930.0,118920.0,0.2894931]
[1752419244492,0.27186891,118930.0,118920.0,0.2894931]
[1752419245691,0.63266891,118930.0,118920.0,0.2894931]
[1752419245890,0.2889058,118930.0,118920.0,0.2894931]
[1752419247496,0.27186891,118930.0,118920.0,0.2894931]
[1752419248693,0.28889718,118930.0,118920.0,0.2894931]
[1752419248896,0.12078828,118930.0,118920.0,0.57481247]
[1752419249091,0.12078828,118930.0,118920.0,0.93561247]
[1752419249291,0.06188828,118930.0,118920.0,0.93561247]
[1752419249492,0.06188322,118930.0,118920.0,0.93561247]
[1752419249686,0.12163331,118930.0,118920.0,0.57481247]
[1752419250198,0.12163331,118930.0,118920.0,0.93561247]
[1752419250394,0.10461001,118930.0,118920.0,0.93561247]
[1752419250698,0.12164394,118930.0,118920.0,0.93561247]
[1752419251898,0.12164394,118930.0,118920.0,0.6502931]
[1752419252299,0.12164394,118930.0,118920.0,0.93561247]
[1752419252794,0.10461001,118930.0,118920.0,0.93561247]
[1752419253097,0.00600001,118930.0,118920.0,0.93561247]
[1752419253493,0.12227519,118930.0,118920.0,0.93561247]
[1752419253694,0.12227493,118930.0,118920.0,0.57481247]
[1752419253894,0.12227493,118930.0,118920.0,0.2894931]
[1752419254195,0.29038383,118930.0,118920.0,0.2894931]
[1752419254398,0.12227493,118930.0,118920.0,0.6502931]
[1752419255091,0.31427383,118930.0,118920.0,0.2894931]
[1752419255291,0.5995932,118930.0,118920.0,0.2894931]
[1752419256400,0.9603932,118930.0,118920.0,0.2894931]
[1752419257999,0.67507383,118930.0,118920.0,0.2894931]
[1752419259301,0.31427383,118930.0,118920.0,0.2894931]
[1752419260401,0.67507383,118930.0,118920.0,0.2894931]
[1752419260604,0.31427383,118930.0,118920.0,0.2894931]
[1752419260999,0.67507383,118930.0,118920.0,0.2894931]
[1752419261601,0.31427383,118930.0,118920.0,0.2894931]
[1752419261800,0.67507383,118930.0,118920.0,0.2894931]
[1752419262697,0.31427383,118930.0,118920.0,0.2894931]
[1752419263105,0.29038383,118930.0,118920.0,0.2894931]
[1752419263406,0.29038383,118930.0,118920.0,0.57481247]
[1752419263702,0.81603383,118930.0,118920.0,0.57481247]
[1752419264004,0.23063383,118930.0,118920.0,0.57481247]
[1752419264205,0.06252493,118930.0,118920.0,0.57481247]
[1752419265300,0.06252493,118930.0,118920.0,0.93561247]
[1752419266100,0.02304493,118930.0,118920.0,0.93561247]
[1752419267108,0.23063383,118930.0,118920.0,0.57481247]
[1752419267299,0.06252493,118930.0,118920.0,0.57481247]
[1752419267699,0.06252493,118930.0,118920.0,0.93561247]
[1752419269299,0.23063383,118930.0,118920.0,0.57481247]
[1752419269503,0.29038383,118930.0,118920.0,0.2894931]
[1752419270108,0.67507383,118930.0,118920.0,0.2894931]
[1752419270605,0.9603932,118930.0,118920.0,0.2894931]
[1752419272406,0.5995932,118930.0,118920.0,0.2894931]
[1752419272608,0.9603932,118930.0,118920.0,0.2894931]
[1752419273313,0.67507383,118930.0,118920.0,0.2894931]
[1752419273909,0.9603932,118930.0,118920.0,0.2894931]
[1752419275415,0.31427383,118930.0,118920.0,0.2894931]
[1752419276815,0.67507383,118930.0,118920.0,0.2894931]
[1752419277008,0.31427383,118930.0,118920.0,0.2894931]
[1752419278412,0.67507383,118930.0,118920.0,0.2894931]
[1752419281016,0.31427383,118930.0,118920.0,0.2894931]
[1752419281316,0.14616493,118930.0,118920.0,0.2894931]
[1752419281713,0.31427383,118930.0,118920.0,0.2894931]
[1752419283818,0.31427383,118930.0,118920.0,0.6502931]
[1752419284013,0.31427383,118930.0,118920.0,0.2894931]
[1752419284211,0.12912001,118930.0,118920.0,0.6502931]
[1752419284414,0.14621588,118930.0,118920.0,0.6502931]
[1752419284610,0.12232588,118930.0,118920.0,0.6502931]
[1752419284807,0.12232588,118930.0,118920.0,0.93561247]
[1752419286517,0.06257588,118930.0,118920.0,0.93561247]
[1752419287024,0.02309588,118930.0,118920.0,1.22093184]
[1752419287222,0.02309588,118930.0,118920.0,1.266291]
[1752419287422,0.02309588,118930.0,118920.0,0.98097163]
[1752419288520,0.00600001,118930.0,118920.0,0.98097163]
[1752419290119,0.00600001,118930.0,118920.0,1.04929494]
[1752419291121,0.00600001,118930.0,118920.0,1.33461431]
[1752419292420,1e-08,118930.0,118920.0,1.33461431]
[1752419292727,9e-08,118940.0,118930.0,0.2292289]
[1752419292917,9e-08,118940.0,118930.0,2.12356984]
[1752419293117,0.01708556,118940.0,118930.0,2.03966984]
[1752419293321,0.01708556,118940.0,118930.0,2.10052984]
[1752419293521,0.01708556,118940.0,118930.0,2.12356984]
[1752419296025,9e-08,118940.0,118930.0,2.03966984]
[1752419296628,0.42714,118970.0,118960.0,0.1680665]
[1752419296827,0.4821902,118970.0,118960.0,0.57536587]
[1752419297021,0.1213902,118970.0,118960.0,0.2900465]
[1752419297620,0.1445402,118970.0,118960.0,0.2900465]
[1752419298016,0.1515402,118970.0,118960.0,0.2900465]
[1752419298417,0.3195926,118970.0,118960.0,0.2900465]
[1752419298828,0.96571197,118970.0,118960.0,0.2900465]
[1752419299126,0.96571197,118970.0,118960.0,0.1680665]
[1752419299729,1.55039197,118970.0,118960.0,0.1680665]
[1752419301430,1.55039197,118970.0,118960.0,0.1911065]
[1752419302729,1.55039197,118970.0,118960.0,0.2519665]
[1752419302933,1.55039197,118970.0,118960.0,0.2927465]
[1752419303125,1.71851197,118970.0,118960.0,0.1680665]
[1752419304633,1.55039197,118970.0,118960.0,0.1680665]
[1752419304834,0.2900265,118960.0,118950.0,0.2943226]
[1752419305030,0.95321607,118960.0,118950.0,0.2941226]
[1752419305734,0.95321607,118960.0,118950.0,0.31181113]
[1752419306234,0.95621607,118960.0,118950.0,0.26979183]
[1752419306635,0.95921607,118960.0,118950.0,0.26979183]
[1752419307331,0.95921607,118960.0,118950.0,0.29359183]
[1752419308235,1.0903502,118960.0,118950.0,0.6781112]
[1752419308538,0.006,118960.0,118950.0,1.36958973]
[1752419308732,0.006,118960.0,118950.0,1.08427036]
[1752419309737,0.004,118970.0,118960.0,0.1680665]
[1752419309933,0.02106061,118970.0,118960.0,2.10618587]
[1752419310338,0.004,118970.0,118960.0,2.10618587]
[1752419311037,0.005,118970.0,118960.0,2.10618587]
[1752419311226,0.007,118970.0,118960.0,2.10618587]
[1752419312433,0.006,118970.0,118960.0,2.10618587]
[1752419312644,0.2960124,118970.0,118960.0,1.4600665]
[1752419313144,0.94213177,118970.0,118960.0,0.2910665]
[1752419313336,0.94013177,118970.0,118960.0,0.2910665]
[1752419313540,0.95716218,118970.0,118960.0,0.2910665]
[1752419313946,0.67184281,118970.0,118960.0,0.2910665]
[1752419314137,0.59636218,118970.0,118960.0,0.2910665]
[1752419314736,0.67184281,118970.0,118960.0,0.2910665]
[1752419315741,0.31104281,118970.0,118960.0,0.2910665]
[1752419316050,0.14299041,118970.0,118960.0,0.2910665]
[1752419316242,0.11869041,118970.0,118960.0,0.93718587]
[1752419316745,0.05899041,118970.0,118960.0,0.93718587]
[1752419316940,0.02103041,118970.0,118960.0,0.93718587]
[1752419318439,0.004,118970.0,118960.0,0.93718587]
[1752419319943,0.004,118970.0,118960.0,0.57638587]
[1752419320249,0.004,118970.0,118960.0,0.93718587]
[1752419327654,0.004,118970.0,118960.0,1.22250524]
[1752419328549,0.03796,118990.0,118980.0,0.2910383]
[1752419328751,0.01704355,118990.0,118980.0,2.12268845]
[1752419328953,0.01704355,118990.0,118980.0,1.76188845]
[1752419329251,0.05500355,118990.0,118980.0,1.76188845]